[Event "Top 12 Féminin 2026"]
[Site "Asnières-sur-Seine, France"]
[Date "2026.05.17"]
[Round "5.8"]
[White "Belluire, Beatrice"]
[Black "Thomas, Anysia"]
[Result "1-0"]
[TimeControl "1h30 / 40 moves + 30m + 30sec/move"]
[WhiteTitle "WFM"]
[BlackTitle "WFM"]
[WhiteFideId "-"]
[BlackFideId "-"]
[WhiteElo "2123"]
[BlackElo "2120"]

1. e4 {[%clk 01:30:59]} c5 {[%clk 01:29:31]} {[%emt 00:01:29]} 2. Nf3 {[%clk
01:31:19]} {[%emt 00:00:09]} Nc6 {[%clk 01:29:34]} {[%emt 00:00:28]} 3. Bb5
{[%clk 01:31:40]} {[%emt 00:00:09]} g6 {[%clk 01:29:57]} {[%emt 00:00:07]} 4.
Bxc6 {[%clk 01:32:03]} {[%emt 00:00:07]} dxc6 {[%clk 01:30:23]} {[%emt
00:00:04]} 5. d3 {[%clk 01:32:11]} {[%emt 00:00:23]} Bg7 {[%clk 01:30:14]}
{[%emt 00:00:40]} 6. h3 {[%clk 01:32:31]} {[%emt 00:00:09]} Nf6 {[%clk
01:23:15]} {[%emt 00:07:29]} 7. Nc3 {[%clk 01:30:16]} {[%emt 00:02:45]} Nd7
{[%clk 01:23:22]} {[%emt 00:00:22]} 8. Be3 {[%clk 01:29:47]} {[%emt 00:00:59]}
e5 {[%clk 01:23:44]} {[%emt 00:00:09]} 9. Qd2 {[%clk 01:30:10]} {[%emt
00:00:07]} h6 {[%clk 01:24:08]} {[%emt 00:00:06]} 10. O-O {[%clk 01:30:10]}
{[%emt 00:00:29]} b6 {[%clk 01:24:29]} {[%emt 00:00:09]} 11. Nh2 {[%clk
01:30:14]} {[%emt 00:00:26]} Nf8 {[%clk 01:24:32]} {[%emt 00:00:27]} 12. f4
{[%clk 01:30:37]} {[%emt 00:00:07]} exf4 {[%clk 01:24:58]} {[%emt 00:00:04]} 13.
Bxf4 {[%clk 01:31:02]} {[%emt 00:00:04]} Ne6 {[%clk 01:25:14]} {[%emt
00:00:14]} 14. Be3 {[%clk 01:31:02]} {[%emt 00:00:30]} c4 {[%clk 01:22:57]}
{[%emt 00:02:47]} 15. Qf2 {[%clk 01:31:14]} {[%emt 00:00:18]} O-O {[%clk
01:20:19]} {[%emt 00:03:08]} 16. dxc4 {[%clk 01:31:23]} {[%emt 00:00:21]} Ba6
{[%emt 00:04:18]} 17. Qe2 {[%clk 01:29:45]} {[%emt 00:02:07]} Nd4 {[%clk
01:04:36]} {[%emt 00:12:26]} 18. Qd3 {[%clk 01:20:50]} {[%emt 00:09:25]} Bxc4
{[%clk 00:51:02]} {[%emt 00:14:04]} 19. Qxc4 {[%clk 01:19:55]} {[%emt
00:01:26]} Nxc2 {[%clk 00:51:25]} {[%emt 00:00:08]} 20. Bf4 {[%clk 01:06:06]}
{[%emt 00:14:18]} Nxa1 {[%clk 00:33:14]} {[%emt 00:18:41]} 21. Rxa1 {[%clk
01:06:26]} {[%emt 00:00:09]} Qd4+ {[%clk 00:33:24]} {[%emt 00:00:21]} 22. Qxd4
{[%clk 01:06:47]} {[%emt 00:00:09]} Bxd4+ {[%clk 00:33:52]} {[%emt 00:00:03]}
23. Kf1 {[%clk 01:00:28]} {[%emt 00:06:48]} g5 {[%clk 00:33:09]} {[%emt
00:01:13]} 24. Bd6 {[%clk 00:59:44]} {[%emt 00:01:14]} Rfe8 {[%clk 00:29:45]}
{[%emt 00:03:54]} 25. Re1 {[%clk 00:58:09]} {[%emt 00:02:05]} Rad8 {[%clk
00:28:28]} {[%emt 00:01:48]} 26. e5 {[%clk 00:57:35]} {[%emt 00:01:04]} f5
{[%clk 00:26:16]} {[%emt 00:02:42]} 27. g4 {[%clk 00:51:41]} {[%emt 00:06:23]}
f4 {[%clk 00:20:27]} {[%emt 00:06:20]} 28. Nf3 {[%clk 00:43:05]} {[%emt
00:09:06]} Bxc3 {[%clk 00:13:48]} {[%emt 00:07:10]} 29. bxc3 {[%clk 00:43:20]}
{[%emt 00:00:15]} c5 {[%clk 00:14:14]} {[%emt 00:00:04]} 30. a4 {[%clk
00:37:50]} {[%emt 00:05:59]} Kf7 {[%clk 00:13:50]} {[%emt 00:00:55]} 31. a5
{[%clk 00:32:49]} {[%emt 00:05:31]} Kg6 {[%clk 00:13:47]} {[%emt 00:00:33]} 32.
axb6 {[%clk 00:28:11]} {[%emt 00:05:08]} axb6 {[%clk 00:14:12]} {[%emt
00:00:05]} 33. Rb1 {[%clk 00:28:05]} {[%emt 00:00:35]} Re6 {[%clk 00:01:49]}
{[%emt 00:12:53]} 34. Rxb6 {[%clk 00:28:02]} {[%emt 00:00:33]} Ra8 {[%clk
00:01:49]} {[%emt 00:00:31]} 35. Ke2 {[%clk 00:24:18]} {[%emt 00:04:14]} Ra2+
{[%clk 00:01:33]} {[%emt 00:00:47]} 36. Kd3 {[%clk 00:24:07]} {[%emt 00:00:40]}
Kf7 {[%clk 00:00:39]} {[%emt 00:01:24]} 37. Ke4 {[%clk 00:23:27]} {[%emt
00:01:10]} Ra3 {[%clk 00:00:34]} {[%emt 00:00:35]} 38. Kf5 {[%clk 00:23:03]}
{[%emt 00:00:53]} Re8 {[%clk 00:01:01]} {[%emt 00:00:04]} 39. e6+ {[%clk
00:21:34]} {[%emt 00:01:59]} Kg8 {[%clk 00:01:11]} {[%emt 00:00:20]} 40. Be5
{[%clk 00:21:42]} {[%emt 00:00:22]} Ra7 {[%clk 00:01:15]} {[%emt 00:00:25]} 41.
Kg6 {[%clk 00:20:23]} {[%emt 00:01:49]} Rae7 {[%clk 00:28:07]} {[%emt
00:03:38]} 42. Kxh6 {[%clk 00:49:40]} {[%emt 00:01:13]} Rh7+ {[%clk 00:28:30]}
{[%emt 00:00:07]} 43. Kg6 {[%clk 00:48:14]} {[%emt 00:01:56]} Rxh3 {[%clk
00:23:07]} {[%emt 00:05:53]} 44. Nxg5 {[%clk 00:48:20]} {[%emt 00:00:24]} Re3
{[%clk 00:19:36]} {[%emt 00:04:01]} 45. Rb7 {[%clk 00:47:38]} {[%emt 00:01:12]}
1-0

[Event "Top 12 Féminin 2026"]
[Site "Asnières-sur-Seine, France"]
[Date "2026.05.17"]
[Round "5.9"]
[White "Osmak, Yuliaa"]
[Black "Cosma, Elena-Luminita"]
[Result "1-0"]
[TimeControl "1h30 / 40 moves + 30m + 30sec/move"]
[WhiteTitle "IM"]
[BlackTitle "WGM"]
[WhiteFideId "14101602"]
[BlackFideId "-"]
[WhiteElo "2451"]
[BlackElo "2241"]

1. d4 {[%emt 00:00:07]} d5 {[%clk 01:30:56]} 2. c4 {[%clk 01:31:24]} {[%emt
00:00:03]} e6 {[%clk 01:31:22]} {[%emt 00:00:04]} 3. Nc3 {[%clk 01:31:51]}
{[%emt 00:00:03]} Nf6 {[%clk 01:31:48]} {[%emt 00:00:04]} 4. cxd5 {[%clk
01:32:18]} {[%emt 00:00:04]} exd5 {[%clk 01:32:13]} {[%emt 00:00:04]} 5. Bg5
{[%clk 01:32:45]} {[%emt 00:00:03]} Be7 {[%clk 01:32:38]} {[%emt 00:00:06]} 6.
e3 {[%clk 01:33:12]} {[%emt 00:00:03]} Nbd7 {[%clk 01:33:03]} {[%emt 00:00:05]}
7. Bd3 {[%clk 01:33:03]} {[%emt 00:00:38]} Nf8 {[%clk 01:33:25]} {[%emt
00:00:08]} 8. Nf3 {[%clk 01:27:02]} {[%emt 00:06:32]} c6 {[%clk 01:31:16]}
{[%emt 00:02:39]} 9. Ne5 {[%clk 01:25:18]} {[%emt 00:02:14]} N6d7 {[%clk
01:26:57]} {[%emt 00:04:49]} 10. Bxe7 {[%clk 01:22:14]} {[%emt 00:03:34]} Qxe7
{[%clk 01:27:21]} {[%emt 00:00:05]} 11. f4 {[%clk 01:22:18]} {[%emt 00:00:26]}
Nxe5 {[%clk 01:14:08]} {[%emt 00:13:43]} 12. fxe5 {[%clk 01:08:51]} {[%emt
00:13:57]} f6 {[%clk 01:13:31]} {[%emt 00:01:08]} 13. O-O {[%clk 01:06:18]}
{[%emt 00:03:02]} fxe5 {[%clk 01:12:36]} {[%emt 00:01:25]} 14. e4 {[%clk
00:52:25]} {[%emt 00:14:24]} exd4 {[%clk 00:49:28]} {[%emt 00:23:39]} 15. exd5
{[%clk 00:48:02]} {[%emt 00:04:52]} dxc3 {[%clk 00:47:25]} {[%emt 00:02:32]} 16.
Re1 {[%clk 00:42:09]} {[%emt 00:06:24]} Be6 {[%clk 00:47:46]} {[%emt 00:00:10]}
17. dxe6 {[%clk 00:42:06]} {[%emt 00:00:33]} O-O-O {[%clk 00:47:10]} {[%emt
00:01:06]} 18. Qc2 {[%clk 00:38:17]} {[%emt 00:04:20]} Qc5+ {[%clk 00:36:40]}
{[%emt 00:10:59]} 19. Kh1 {[%clk 00:37:12]} {[%emt 00:01:35]} Ng6 {[%clk
00:37:04]} {[%emt 00:00:05]} 20. bxc3 {[%clk 00:23:57]} {[%emt 00:13:47]} Ne7
{[%clk 00:35:17]} {[%emt 00:02:16]} 21. Rab1 {[%clk 00:23:54]} {[%emt
00:00:33]} Rhf8 {[%clk 00:19:08]} {[%emt 00:16:39]} 22. Rb2 {[%clk 00:20:40]}
{[%emt 00:03:45]} Rf6 {[%clk 00:14:15]} {[%emt 00:05:22]} 23. Ba6 {[%clk
00:06:05]} {[%emt 00:15:06]} bxa6 {[%clk 00:12:22]} {[%emt 00:02:22]} 24. Qe2
{[%clk 00:06:08]} {[%emt 00:00:26]} Kc7 {[%clk 00:11:21]} {[%emt 00:01:31]} 25.
Qxa6 {[%clk 00:05:47]} {[%emt 00:00:51]} Rxe6 {[%clk 00:07:52]} {[%emt
00:04:00]} 26. Rb7+ {[%clk 00:03:35]} {[%emt 00:02:41]} Kd6 {[%clk 00:08:21]}
{[%emt 00:00:01]} 27. Qd3+ {[%clk 00:03:50]} {[%emt 00:00:15]} Qd5 {[%clk
00:08:45]} {[%emt 00:00:06]} 28. Qg3+ {[%clk 00:03:57]} {[%emt 00:00:23]} Kc5
{[%clk 00:08:50]} {[%emt 00:00:25]} 29. Qf2+ {[%clk 00:03:41]} {[%emt
00:00:46]} Kd6 {[%clk 00:09:17]} {[%emt 00:00:03]} 30. Qf4+ {[%clk 00:03:37]}
{[%emt 00:00:34]} Qe5 {[%clk 00:08:43]} {[%emt 00:01:04]} 31. Rxe5 {[%clk
00:03:39]} {[%emt 00:00:28]} Rxe5 {[%clk 00:09:12]} {[%emt 00:00:01]} 32. Rxe7
{[%clk 00:03:43]} {[%emt 00:00:26]} 1-0

[Event "Top 12 Féminin 2026"]
[Site "Asnières-sur-Seine, France"]
[Date "2026.05.17"]
[Round "5.10"]
[White "Monpeurt, Cyrielle"]
[Black "Schippke, Manon"]
[Result "0-1"]
[TimeControl "1h30 / 40 moves + 30m + 30sec/move"]
[WhiteTitle "WFM"]
[BlackTitle "WIM"]
[WhiteFideId "-"]
[BlackFideId "-"]
[WhiteElo "2199"]
[BlackElo "2311"]

1. e4 {[%clk 01:30:56]} {[%emt 00:00:03]} e6 {[%clk 01:30:56]} {[%emt
00:00:04]} 2. d4 {[%clk 01:31:19]} {[%emt 00:00:07]} d5 {[%clk 01:31:23]}
{[%emt 00:00:03]} 3. Nc3 {[%clk 01:31:41]} {[%emt 00:00:09]} Nf6 {[%clk
01:31:48]} {[%emt 00:00:05]} 4. Bg5 {[%clk 01:31:54]} {[%emt 00:00:16]} dxe4
{[%clk 01:32:06]} {[%emt 00:00:12]} 5. Nxe4 {[%clk 01:32:15]} {[%emt 00:00:09]}
Be7 {[%clk 01:31:43]} {[%emt 00:00:53]} 6. Nxf6+ {[%clk 01:32:19]} {[%emt
00:00:26]} Bxf6 {[%clk 01:32:09]} {[%emt 00:00:04]} 7. Bxf6 {[%clk 01:32:41]}
{[%emt 00:00:08]} Qxf6 {[%clk 01:32:37]} {[%emt 00:00:02]} 8. Nf3 {[%clk
01:32:49]} {[%emt 00:00:22]} O-O {[%clk 01:30:26]} {[%emt 00:02:41]} 9. Qd3
{[%clk 01:33:08]} {[%emt 00:00:11]} c5 {[%clk 01:27:11]} {[%emt 00:03:45]} 10.
O-O-O {[%clk 01:33:11]} {[%emt 00:00:27]} Rd8 {[%clk 01:14:52]} {[%emt
00:12:50]} 11. Qe4 {[%clk 01:32:30]} {[%emt 00:01:11]} Nc6 {[%clk 01:08:47]}
{[%emt 00:06:36]} 12. Bd3 {[%clk 01:31:43]} {[%emt 00:01:17]} Qh6+ {[%clk
01:09:00]} {[%emt 00:00:17]} 13. Kb1 {[%clk 01:32:06]} {[%emt 00:00:06]} cxd4
{[%clk 01:05:12]} {[%emt 00:04:18]} 14. Rhe1 {[%clk 01:30:00]} {[%emt
00:02:35]} Bd7 {[%clk 01:02:17]} {[%emt 00:03:26]} 15. g4 {[%clk 01:27:25]}
{[%emt 00:03:05]} Be8 {[%clk 00:53:14]} {[%emt 00:09:33]} 16. a3 {[%clk
01:20:21]} {[%emt 00:07:34]} Rd6 {[%clk 00:46:07]} {[%emt 00:07:37]} 17. g5
{[%clk 01:08:51]} {[%emt 00:12:00]} Qh5 {[%clk 00:45:11]} {[%emt 00:01:26]} 18.
Be2 {[%clk 01:08:10]} {[%emt 00:01:10]} Qh3 {[%clk 00:38:46]} {[%emt 00:06:55]}
19. Nh4 {[%clk 00:58:42]} {[%emt 00:09:59]} Rd5 {[%clk 00:32:29]} {[%emt
00:06:48]} 20. Bf1 {[%clk 00:37:11]} {[%emt 00:22:01]} Qxh2 {[%clk 00:32:34]}
{[%emt 00:00:25]} 21. Bd3 {[%clk 00:37:05]} {[%emt 00:00:36]} g6 {[%clk
00:31:33]} {[%emt 00:01:31]} 22. Nf3 {[%clk 00:36:04]} {[%emt 00:01:31]} Qd6
{[%clk 00:28:23]} {[%emt 00:03:40]} 23. Rh1 {[%clk 00:35:33]} {[%emt 00:01:01]}
Ne5 {[%clk 00:26:04]} {[%emt 00:02:49]} 24. Rh6 {[%clk 00:30:30]} {[%emt
00:05:33]} Bc6 {[%clk 00:23:26]} {[%emt 00:03:09]} 25. Rdh1 {[%clk 00:25:54]}
{[%emt 00:05:06]} Nxf3 {[%clk 00:21:17]} {[%emt 00:02:39]} 26. Qxf3 {[%clk
00:21:57]} {[%emt 00:04:27]} Rxg5 {[%clk 00:20:52]} {[%emt 00:00:55]} 27. Be4
{[%clk 00:20:17]} {[%emt 00:02:10]} Rf5 {[%clk 00:17:13]} {[%emt 00:04:09]} 28.
Qd3 {[%clk 00:18:35]} {[%emt 00:02:12]} Bxe4 {[%clk 00:17:25]} {[%emt
00:00:18]} 29. Qxe4 {[%clk 00:19:00]} {[%emt 00:00:05]} Qd5 {[%clk 00:17:10]}
{[%emt 00:00:46]} 30. Qd3 {[%clk 00:17:28]} {[%emt 00:02:01]} Kf8 {[%clk
00:15:57]} {[%emt 00:01:43]} 31. Rxh7 {[%clk 00:17:42]} {[%emt 00:00:16]} Ke7
{[%clk 00:16:21]} {[%emt 00:00:06]} 32. Qg3 {[%clk 00:16:59]} {[%emt 00:01:12]}
Rc8 {[%clk 00:15:52]} {[%emt 00:01:00]} 33. Re1 {[%clk 00:15:04]} {[%emt
00:02:25]} g5 {[%clk 00:15:02]} {[%emt 00:01:20]} 34. Rh3 {[%clk 00:08:34]}
{[%emt 00:07:00]} Qc4 {[%clk 00:11:52]} {[%emt 00:03:41]} 35. Rc1 {[%clk
00:08:28]} {[%emt 00:00:35]} d3 {[%clk 00:10:40]} {[%emt 00:01:42]} 36. Qxd3
{[%clk 00:07:44]} {[%emt 00:01:15]} Qxd3 {[%clk 00:11:07]} {[%emt 00:00:03]} 37.
Rxd3 {[%clk 00:08:09]} {[%emt 00:00:04]} Rxf2 {[%clk 00:11:35]} {[%emt
00:00:02]} 38. Rg3 {[%clk 00:07:14]} {[%emt 00:01:25]} Kf6 {[%clk 00:10:57]}
{[%emt 00:01:08]} 39. c4 {[%clk 00:07:20]} {[%emt 00:00:24]} Kf5 {[%clk
00:10:53]} {[%emt 00:00:34]} 40. c5 {[%clk 00:07:06]} {[%emt 00:00:44]} g4
{[%clk 00:09:15]} {[%emt 00:02:07]} 41. Rc4 {[%clk 00:05:09]} {[%emt 00:02:27]}
Rf4 {[%clk 00:09:29]} {[%emt 00:00:17]} 42. Rcc3 {[%clk 00:05:35]} {[%emt
00:00:03]} e5 {[%clk 00:09:09]} {[%emt 00:00:50]} 43. b4 {[%clk 00:05:35]}
{[%emt 00:00:30]} e4 {[%clk 00:04:34]} {[%emt 00:05:05]} 44. Rg1 {[%clk
00:06:01]} {[%emt 00:00:04]} Rf3 {[%clk 00:04:35]} {[%emt 00:00:30]} 45. Rc4
{[%clk 00:06:09]} {[%emt 00:00:21]} Rxa3 {[%clk 00:03:50]} {[%emt 00:01:15]} 46.
Re1 {[%clk 00:06:26]} {[%emt 00:00:13]} Re8 {[%clk 00:03:37]} {[%emt 00:00:43]}
47. Kb2 {[%clk 00:06:26]} {[%emt 00:00:30]} Rf3 {[%clk 00:01:32]} {[%emt
00:02:36]} 48. b5 {[%clk 00:06:01]} {[%emt 00:00:54]} g3 {[%clk 00:01:35]}
{[%emt 00:00:27]} 49. c6 {[%clk 00:06:18]} {[%emt 00:00:14]} bxc6 {[%clk
00:02:03]} {[%emt 00:00:02]} 50. bxc6 {[%clk 00:06:43]} {[%emt 00:00:05]} g2
{[%clk 00:01:33]} {[%emt 00:00:59]} 51. Rcc1 {[%clk 00:03:18]} {[%emt
00:03:55]} e3 {[%clk 00:29:37]} {[%emt 00:02:26]} 52. c7 {[%clk 00:33:40]}
{[%emt 00:00:08]} Rc8 {[%clk 00:29:23]} {[%emt 00:00:44]} 53. Rc5+ {[%clk
00:31:51]} {[%emt 00:02:19]} Kf4 {[%clk 00:28:29]} {[%emt 00:01:25]} 54. Rec1
{[%clk 00:30:49]} {[%emt 00:01:31]} Rf1 {[%clk 00:26:01]} {[%emt 00:02:57]} 55.
R1c4+ {[%clk 00:31:07]} {[%emt 00:00:14]} Kf3 {[%clk 00:25:57]} {[%emt
00:00:33]} 56. Rf5+ {[%clk 00:31:26]} {[%emt 00:00:11]} Ke2 {[%clk 00:25:50]}
{[%emt 00:00:37]} 57. Rc2 {[%clk 00:30:55]} {[%emt 00:01:01]} Kd3 {[%clk
00:26:02]} {[%emt 00:00:18]} 58. Rd5+ {[%clk 00:29:51]} {[%emt 00:01:33]} Ke4
{[%clk 00:26:29]} {[%emt 00:00:04]} 59. Rd8 {[%clk 00:30:17]} {[%emt 00:00:04]}
Rxc7 {[%clk 00:26:28]} {[%emt 00:00:31]} 0-1

[Event "Top 12 Féminin 2026"]
[Site "Asnières-sur-Seine, France"]
[Date "2026.05.17"]
[Round "5.11"]
[White "Daulyte-Cornette, Deimante"]
[Black "Sterpu, Constanta-Andreea"]
[Result "1-0"]
[TimeControl "1h30 / 40 moves + 30m + 30sec/move"]
[WhiteTitle "IM"]
[BlackTitle "-"]
[WhiteFideId "-"]
[BlackFideId "-"]
[WhiteElo "2389"]
[BlackElo "1984"]

1. d4 {[%clk 01:30:57]} {[%emt 00:00:02]} d5 {[%clk 01:30:48]} {[%emt
00:00:13]} 2. Nf3 {[%clk 01:31:20]} {[%emt 00:00:06]} e6 {[%clk 01:31:07]}
{[%emt 00:00:11]} 3. Bf4 {[%clk 01:31:40]} {[%emt 00:00:10]} Nf6 {[%clk
01:30:49]} {[%emt 00:00:48]} 4. e3 {[%clk 01:31:51]} {[%emt 00:00:17]} Be7
{[%clk 01:29:12]} {[%emt 00:02:09]} 5. Bd3 {[%clk 01:28:51]} {[%emt 00:03:31]}
Nh5 {[%clk 01:28:04]} {[%emt 00:01:38]} 6. Be5 {[%clk 01:28:30]} {[%emt
00:00:52]} Nd7 {[%clk 01:17:26]} {[%emt 00:11:08]} 7. Nbd2 {[%clk 01:19:21]}
{[%emt 00:09:38]} c5 {[%clk 01:05:11]} {[%emt 00:12:46]} 8. dxc5 {[%clk
01:14:00]} {[%emt 00:05:51]} Nxc5 {[%clk 00:55:28]} {[%emt 00:10:14]} 9. Be2
{[%clk 01:14:19]} {[%emt 00:00:10]} Nf6 {[%clk 00:51:44]} {[%emt 00:04:14]} 10.
O-O {[%clk 01:14:09]} {[%emt 00:00:41]} O-O {[%clk 00:51:38]} {[%emt 00:00:35]}
11. c4 {[%clk 01:14:04]} {[%emt 00:00:35]} dxc4 {[%clk 00:51:04]} {[%emt
00:01:04]} 12. Nxc4 {[%clk 01:14:05]} {[%emt 00:00:29]} Qxd1 {[%clk 00:39:41]}
{[%emt 00:11:54]} 13. Rfxd1 {[%clk 01:14:29]} {[%emt 00:00:06]} Nfe4 {[%clk
00:39:47]} {[%emt 00:00:23]} 14. Rac1 {[%clk 01:11:23]} {[%emt 00:03:37]} f6
{[%clk 00:39:32]} {[%emt 00:00:45]} 15. Bd6 {[%clk 01:11:36]} {[%emt 00:00:17]}
Nxd6 {[%clk 00:26:05]} {[%emt 00:13:57]} 16. Nxd6 {[%clk 01:11:59]} {[%emt
00:00:06]} Na4 {[%clk 00:21:15]} {[%emt 00:05:20]} 17. b3 {[%clk 00:47:20]}
{[%emt 00:25:09]} Nb6 {[%clk 00:21:34]} {[%emt 00:00:12]} 18. a4 {[%clk
00:47:28]} {[%emt 00:00:22]} a5 {[%clk 00:18:08]} {[%emt 00:03:55]} 19. Bb5
{[%clk 00:37:32]} {[%emt 00:10:27]} e5 {[%clk 00:13:41]} {[%emt 00:04:57]} 20.
Rc7 {[%clk 00:32:42]} {[%emt 00:05:19]} Bd8 {[%clk 00:12:44]} {[%emt 00:01:27]}
21. Rxc8 {[%clk 00:31:24]} {[%emt 00:01:49]} Rxc8 {[%clk 00:11:12]} {[%emt
00:02:02]} 22. Nxc8 {[%clk 00:31:48]} {[%emt 00:00:06]} Nxc8 {[%clk 00:11:34]}
{[%emt 00:00:08]} 23. Rd7 {[%clk 00:31:56]} {[%emt 00:00:22]} b6 {[%clk
00:10:12]} {[%emt 00:01:51]} 24. Ba6 {[%clk 00:30:22]} {[%emt 00:02:05]} Ne7
{[%clk 00:08:48]} {[%emt 00:01:54]} 25. Nd2 {[%clk 00:30:06]} {[%emt 00:00:47]}
Nc6 {[%clk 00:03:34]} {[%emt 00:05:43]} 26. Bc4+ {[%clk 00:27:16]} {[%emt
00:03:20]} Kh8 {[%clk 00:03:58]} {[%emt 00:00:06]} 27. Bb5 {[%clk 00:27:42]}
{[%emt 00:00:05]} Nb4 {[%clk 00:03:05]} {[%emt 00:01:24]} 28. Nc4 {[%clk
00:27:56]} {[%emt 00:00:16]} h5 {[%clk 00:02:34]} {[%emt 00:01:00]} 29. Nd6
{[%clk 00:28:04]} {[%emt 00:00:23]} Kg8 {[%clk 00:02:03]} {[%emt 00:00:59]} 30.
Nb7 {[%clk 00:27:28]} {[%emt 00:01:07]} Be7 {[%clk 00:01:42]} {[%emt 00:00:51]}
31. Rxe7 {[%clk 00:27:41]} {[%emt 00:00:17]} Rc8 {[%clk 00:01:53]} {[%emt
00:00:19]} 32. Re8+ {[%clk 00:24:25]} {[%emt 00:03:46]} Rxe8 {[%clk 00:02:08]}
{[%emt 00:00:15]} 33. Bxe8 {[%clk 00:24:52]} {[%emt 00:00:04]} h4 {[%clk
00:02:20]} {[%emt 00:00:18]} 34. Nd6 {[%clk 00:25:08]} {[%emt 00:00:14]} Nd3
{[%clk 00:02:23]} {[%emt 00:00:26]} 35. Bb5 {[%clk 00:25:16]} {[%emt 00:00:22]}
Nc5 {[%clk 00:02:35]} {[%emt 00:00:18]} 36. Nc8 {[%clk 00:25:02]} {[%emt
00:00:45]} Kf8 {[%clk 00:02:55]} {[%emt 00:00:09]} 37. Bc4 {[%clk 00:25:23]}
{[%emt 00:00:10]} Nd7 {[%clk 00:03:17]} {[%emt 00:00:08]} 38. Kf1 {[%clk
00:25:25]} {[%emt 00:00:28]} Ke8 {[%clk 00:03:04]} {[%emt 00:00:43]} 39. Bb5
{[%clk 00:25:48]} {[%emt 00:00:08]} Kd8 {[%clk 00:03:24]} {[%emt 00:00:09]} 40.
Bxd7 {[%clk 00:26:13]} {[%emt 00:00:05]} 1-0

[Event "Top 12 Féminin 2026"]
[Site "Asnières-sur-Seine, France"]
[Date "2026.05.17"]
[Round "5.12"]
[White "Milojevic-Daim, Lola-Shaina"]
[Black "Tomasi, Elise"]
[Result "0-1"]
[TimeControl "1h30 / 40 moves + 30m + 30sec/move"]
[WhiteTitle "-"]
[BlackTitle "WFM"]
[WhiteFideId "-"]
[BlackFideId "-"]
[WhiteElo "1950"]
[BlackElo "2072"]

1. e4 {[%clk 01:30:54]} {[%emt 00:00:05]} e5 {[%clk 01:30:28]} {[%emt
00:00:33]} 2. Nf3 {[%clk 01:31:17]} {[%emt 00:00:08]} Nc6 {[%clk 01:30:33]}
{[%emt 00:00:25]} 3. d4 {[%clk 01:31:27]} {[%emt 00:00:20]} exd4 {[%clk
01:30:42]} {[%emt 00:00:21]} 4. Bc4 {[%clk 01:31:41]} {[%emt 00:00:16]} Nf6
{[%clk 01:30:51]} {[%emt 00:00:21]} 5. e5 {[%clk 01:30:34]} {[%emt 00:01:37]}
d5 {[%clk 01:31:15]} {[%emt 00:00:06]} 6. Bb5 {[%clk 01:30:44]} {[%emt
00:00:20]} Nd7 {[%clk 01:31:40]} {[%emt 00:00:05]} 7. Bxc6 {[%clk 01:29:22]}
{[%emt 00:01:53]} bxc6 {[%clk 01:32:04]} {[%emt 00:00:06]} 8. Nxd4 {[%clk
01:28:59]} {[%emt 00:00:53]} Nb8 {[%clk 01:32:28]} {[%emt 00:00:06]} 9. O-O
{[%clk 01:28:28]} {[%emt 00:01:01]} c5 {[%clk 01:30:58]} {[%emt 00:02:01]} 10.
Nb3 {[%clk 01:18:21]} {[%emt 00:10:37]} a5 {[%clk 01:28:23]} {[%emt 00:03:04]}
11. a4 {[%clk 01:15:58]} {[%emt 00:02:54]} Be7 {[%clk 01:19:13]} {[%emt
00:09:40]} 12. Qf3 {[%clk 01:11:21]} {[%emt 00:05:06]} O-O {[%clk 01:11:00]}
{[%emt 00:08:42]} 13. Be3 {[%clk 00:50:15]} {[%emt 00:21:38]} c4 {[%clk
01:07:22]} {[%emt 00:04:08]} 14. Nc5 {[%clk 00:39:05]} {[%emt 00:11:40]} f6
{[%clk 01:06:11]} {[%emt 00:01:41]} 15. Rd1 {[%clk 00:36:22]} {[%emt 00:03:12]}
c6 {[%clk 01:03:05]} {[%emt 00:03:36]} 16. e6 {[%clk 00:31:57]} {[%emt
00:04:55]} Re8 {[%clk 01:01:13]} {[%emt 00:02:23]} 17. Na3 {[%clk 00:26:27]}
{[%emt 00:06:00]} Qc7 {[%clk 00:55:03]} {[%emt 00:06:40]} 18. Bf4 {[%clk
00:21:43]} {[%emt 00:05:14]} Qa7 {[%clk 00:51:38]} {[%emt 00:03:55]} 19. Bxb8
{[%clk 00:15:53]} {[%emt 00:06:20]} Qxc5 {[%clk 00:51:51]} {[%emt 00:00:17]} 20.
Bf4 {[%clk 00:13:31]} {[%emt 00:02:52]} Bxe6 {[%clk 00:51:35]} {[%emt
00:00:46]} 21. Be3 {[%clk 00:10:49]} {[%emt 00:03:12]} Qb4 {[%clk 00:51:46]}
{[%emt 00:00:19]} 22. c3 {[%clk 00:07:08]} {[%emt 00:04:11]} Qxb2 {[%clk
00:46:27]} {[%emt 00:05:49]} 23. Bd4 {[%clk 00:06:41]} {[%emt 00:00:57]} Bxa3
{[%clk 00:43:01]} {[%emt 00:03:56]} 24. Rdb1 {[%clk 00:05:57]} {[%emt
00:01:14]} Qc2 {[%clk 00:43:24]} {[%emt 00:00:07]} 0-1